bitfinex-derivatives/quotes_BTCF0:USTF0_20250907
["timestamp","ask_amount","ask_price","bid_price","bid_amount"]
[1757213490141,0.57498,110640.0,110630.0,0.61326425]
[1757213490748,0.57498,110640.0,110630.0,0.7270564]
[1757213490948,0.57498,110640.0,110630.0,0.7280564]
[1757213491650,0.57498,110640.0,110630.0,0.4180564]
[1757213492348,0.57498,110640.0,110630.0,0.7280564]
[1757213493548,0.57498,110640.0,110630.0,0.4180564]
[1757213502858,0.92776,110640.0,110630.0,0.4054464]
[1757213503059,0.58776,110640.0,110630.0,0.4054464]
[1757213503759,0.58776,110640.0,110630.0,0.4180964]
[1757213505462,0.57498,110640.0,110630.0,0.4180964]
[1757213515374,0.57498,110640.0,110630.0,0.30430425]
[1757213515777,0.89884,110640.0,110630.0,0.30430425]
[1757213516175,0.89884,110640.0,110630.0,0.41814476]
[1757213516472,0.89884,110640.0,110630.0,0.30430425]
[1757213516678,0.89884,110640.0,110630.0,0.41815797]
[1757213516878,0.58884,110640.0,110630.0,0.41815797]
[1757213517575,0.92884,110640.0,110630.0,0.41811993]
[1757213518176,0.58884,110640.0,110630.0,0.41811993]
[1757213520380,0.58884,110640.0,110630.0,0.41814113]
[1757213522382,0.94884,110640.0,110630.0,0.41814113]
[1757213524485,0.58884,110640.0,110630.0,0.41814113]
[1757213524781,0.02134,110640.0,110630.0,0.68030734]
[1757213526783,0.02134,110640.0,110630.0,1.00030734]
[1757213528085,0.02134,110640.0,110630.0,0.70030734]
[1757213528486,0.02134,110640.0,110630.0,0.58643242]
[1757213529086,0.02134,110640.0,110630.0,0.56643242]
[1757213530278,0.02134,110640.0,110630.0,0.68030647]
[1757213533889,0.0001,110640.0,110630.0,1.00030647]
[1757213534078,0.0001,110640.0,110630.0,0.88643242]
[1757213534482,0.0001,110640.0,110630.0,1.00029094]
[1757213537291,0.0001,110640.0,110630.0,0.88643242]
[1757213537586,0.0001,110640.0,110630.0,0.88543242]
[1757213537791,0.0001,110640.0,110630.0,0.88643242]
[1757213537992,0.02319,110640.0,110630.0,0.88643242]
[1757213538291,0.0001,110640.0,110630.0,0.88643242]
[1757213538693,0.0001,110640.0,110630.0,1.00025633]
[1757213539387,0.0001,110640.0,110630.0,1.00225633]
[1757213539689,0.0001,110640.0,110630.0,1.00125633]
[1757213539890,0.0001,110640.0,110630.0,1.00325633]
[1757213547601,0.02275,110640.0,110630.0,0.88943242]
[1757213573125,0.0001,110640.0,110630.0,0.88943242]
[1757213575333,0.02275,110640.0,110630.0,0.88943242]
[1757213577434,0.02275,110640.0,110630.0,0.62722556]
[1757213578431,0.0001,110640.0,110630.0,0.62722556]
[1757213578635,0.0001,110640.0,110630.0,0.74101943]
[1757213580537,0.0001,110640.0,110630.0,0.62722556]
[1757213581329,0.02275,110640.0,110630.0,0.62722556]
[1757213593553,0.0001,110640.0,110630.0,0.62722556]
[1757213612666,0.0001,110640.0,110630.0,0.88935112]
[1757213613174,0.0001,110640.0,110630.0,0.62722556]
[1757213614577,0.0001,110640.0,110630.0,0.97972842]
[1757213614764,0.0001,110640.0,110630.0,0.88935112]
[1757213615371,0.0001,110640.0,110630.0,1.05210626]
[1757213617772,0.0001,110640.0,110630.0,0.88935112]
[1757213618473,0.0001,110640.0,110630.0,1.05210626]
[1757213620176,0.0001,110640.0,110630.0,0.88935112]
[1757213624080,0.0001,110640.0,110630.0,0.97972822]
[1757213626982,0.0001,110640.0,110630.0,1.1421399]
[1757213628381,0.0001,110640.0,110630.0,1.9595399]
[1757213629383,0.0001,110640.0,110630.0,1.1421399]
[1757213629780,0.0001,110640.0,110630.0,1.9594999]
[1757213629979,0.0001,110640.0,110630.0,1.8691228]
[1757213632585,0.0001,110640.0,110630.0,1.70671112]
[1757213637293,0.0001,110640.0,110630.0,1.8691228]
[1757213637795,0.0001,110640.0,110630.0,1.0517628]
[1757213637993,0.0001,110640.0,110630.0,1.8690828]
[1757213638996,0.0001,110640.0,110630.0,1.0517628]
[1757213639197,0.0001,110640.0,110630.0,1.8690828]
[1757213639596,0.0001,110640.0,110630.0,1.86896944]
[1757213639896,0.0001,110640.0,110630.0,1.70655776]
[1757213641104,0.0001,110640.0,110630.0,1.96862664]
[1757213641797,0.0001,110640.0,110630.0,1.70655776]
[1757213648709,0.0001,110640.0,110630.0,1.86896944]
[1757213649414,0.0001,110640.0,110630.0,1.86892944]
[1757213652213,0.0001,110640.0,110630.0,1.95930664]
[1757213652411,0.0001,110640.0,110630.0,2.22137552]
[1757213654407,0.08409713,110650.0,110640.0,0.03452]
[1757213654607,0.08399713,110650.0,110640.0,1.18072664]
[1757213654814,0.08399713,110650.0,110640.0,1.19867919]
[1757213655715,0.08399713,110650.0,110640.0,1.20318919]
[1757213655916,0.08399713,110650.0,110640.0,1.20418919]
[1757213656516,0.08399713,110650.0,110640.0,1.20618919]
[1757213657414,0.08399713,110650.0,110640.0,1.20818919]
[1757213658319,0.08399713,110650.0,110640.0,1.37160087]
[1757213660620,0.08399713,110650.0,110640.0,2.18884087]
[1757213661017,0.08399713,110650.0,110640.0,1.37160087]
[1757213661218,0.08399713,110650.0,110640.0,2.18884087]
[1757213661521,0.08399713,110650.0,110640.0,1.37160087]
[1757213661721,0.08399713,110650.0,110640.0,2.18884087]
[1757213662224,0.08399713,110650.0,110640.0,1.10953199]
[1757213662421,0.00991164,110650.0,110640.0,1.92673199]
[1757213663222,0.00991164,110650.0,110640.0,1.76432031]
[1757213666825,0.00991164,110650.0,110640.0,0.94712031]
[1757213667120,0.03136164,110650.0,110640.0,1.76432031]
[1757213667824,0.00991164,110650.0,110640.0,1.76432031]
[1757213668223,0.00991164,110650.0,110640.0,1.87802689]
[1757213672340,0.00991164,110650.0,110640.0,2.14009577]
[1757213676535,0.001,110650.0,110640.0,2.14009577]
[1757213676834,0.0011,110650.0,110640.0,2.02638919]
[1757213677031,0.0011,110650.0,110640.0,2.18880087]
[1757213677232,0.01023979,110650.0,110640.0,2.18880087]
[1757213680136,0.01023979,110650.0,110640.0,2.02638919]
[1757213682528,0.0001,110660.0,110640.0,2.02638919]
[1757213682726,0.03475,110690.0,110680.0,0.03692]
[1757213683033,0.39364429,110690.0,110680.0,0.54746776]
[1757213683230,0.39364429,110690.0,110680.0,0.6285893]
[1757213684338,0.39364429,110690.0,110680.0,0.6330993]
[1757213684533,0.39364429,110690.0,110680.0,0.10896154]
[1757213684730,0.39364429,110690.0,110680.0,0.6330993]
[1757213686030,0.4665035,110690.0,110680.0,0.6330993]
[1757213692845,0.4665035,110690.0,110680.0,0.10896154]
[1757213693044,0.4665035,110690.0,110680.0,0.6330993]
[1757213693941,1.2872235,110690.0,110680.0,0.6330993]
[1757213696340,0.4665035,110690.0,110680.0,0.6468393]
[1757213696541,1.2875435,110690.0,110680.0,0.6468393]
[1757213698649,0.4665035,110690.0,110680.0,0.6468393]
[1757213698849,1.2873835,110690.0,110680.0,0.6468393]
[1757213699149,1.2873835,110690.0,110680.0,0.6330993]
[1757213699549,1.2873835,110690.0,110680.0,0.3709007]
[1757213699849,1.2873435,110690.0,110680.0,0.3709007]
[1757213700152,0.4665035,110690.0,110680.0,0.3709007]
[1757213700450,1.2874235,110690.0,110680.0,0.3846407]
[1757213703452,0.4665035,110690.0,110680.0,0.3846407]
[1757213703654,0.9372835,110690.0,110680.0,0.3846407]
[1757213703851,0.9372835,110690.0,110680.0,0.7146407]
[1757213704047,0.9372835,110690.0,110680.0,0.3846407]
[1757213705356,0.1166035,110690.0,110680.0,0.3846407]
[1757213705556,0.9372835,110690.0,110680.0,0.3846407]
[1757213706254,0.02321,110740.0,110690.0,0.03407]
[1757213706452,0.36519499,110740.0,110730.0,0.02112]
[1757213706660,0.65033415,110740.0,110710.0,0.3563307]
[1757213706853,0.03448,110730.0,110720.0,0.02125586]
[1757213707066,0.03448,110730.0,110720.0,0.28319502]
[1757213707263,0.03448,110730.0,110720.0,0.02125586]
[1757213707463,0.03448,110730.0,110720.0,0.28319502]
[1757213707766,0.09746523,110740.0,110720.0,0.54646502]
[1757213708065,0.10542523,110740.0,110730.0,0.29600916]
[1757213708568,0.10542523,110740.0,110730.0,0.3771307]
[1757213708865,0.03533324,110750.0,110730.0,1.26906986]
[1757213709060,0.37650324,110750.0,110740.0,0.29632916]
[1757213709868,0.44693248,110750.0,110740.0,0.29632916]
[1757213710063,0.42590924,110750.0,110740.0,0.29632916]
[1757213711967,0.34227,110750.0,110740.0,0.29632916]
[1757213712172,0.02227,110750.0,110740.0,0.29632916]
[1757213712570,0.03319526,110750.0,110740.0,0.49632916]
[1757213712770,0.03319526,110750.0,110740.0,0.49732916]
[1757213713170,0.001,110750.0,110740.0,1.00926832]
[1757213713473,0.001,110750.0,110740.0,0.74732916]
[1757213714274,0.02227,110750.0,110740.0,0.49732916]
[1757213715183,0.001,110750.0,110740.0,0.49732916]
[1757213715980,0.02227,110750.0,110740.0,0.49732916]
[1757213718479,0.001,110750.0,110740.0,0.49732916]
[1757213720581,0.02229,110750.0,110740.0,0.49732916]
[1757213722177,0.001,110750.0,110740.0,0.49832916]
[1757213723180,0.001,110750.0,110740.0,0.49732916]
[1757213723381,0.001,110750.0,110740.0,0.49932916]
[1757213723782,0.001,110750.0,110740.0,1.01126832]
[1757213723982,0.001,110750.0,110740.0,1.10155602]
[1757213724178,0.001,110750.0,110740.0,1.10606602]
[1757213724779,0.001,110750.0,110740.0,1.01577832]
[1757213724980,0.0011,110750.0,110740.0,1.01577832]
[1757213725282,0.0011,110750.0,110740.0,0.75383916]
[1757213725581,0.0011,110750.0,110740.0,1.57151916]
[1757213725782,0.0011,110750.0,110740.0,1.57751916]
[1757213727281,0.0011,110750.0,110740.0,0.75683916]
[1757213727582,0.0011,110750.0,110740.0,1.57751916]
[1757213729477,0.0011,110750.0,110740.0,0.75683916]
[1757213729679,0.0011,110750.0,110740.0,1.57731916]
[1757213734284,0.0011,110750.0,110740.0,1.6584407]
[1757213736883,0.0011,110750.0,110740.0,1.57731916]
[1757213738388,0.0011,110750.0,110740.0,1.69104151]
[1757213739289,0.0011,110750.0,110740.0,1.44104151]
[1757213744991,0.0011,110750.0,110740.0,1.70298067]
[1757213747192,0.0011,110750.0,110740.0,1.79326847]
[1757213748394,0.0011,110750.0,110740.0,1.70298067]
[1757213749495,0.0011,110750.0,110740.0,1.79326847]
[1757213750696,0.0011,110750.0,110740.0,1.70298067]
[1757213750894,0.0011,110750.0,110740.0,1.44104151]
[1757213751194,0.0011,110750.0,110740.0,1.70298067]
[1757213752692,0.0227,110750.0,110740.0,1.44004151]
[1757213753096,0.0011,110750.0,110740.0,1.44004151]
[1757213753296,0.0011,110750.0,110740.0,1.32631916]
[1757213753795,0.0011,110750.0,110740.0,1.439646]
[1757213753994,0.0011,110750.0,110740.0,1.70158516]
[1757213754195,0.0011,110750.0,110740.0,1.439646]
[1757213754497,0.0011,110750.0,110740.0,1.32631916]
[1757213756392,0.0011,110750.0,110740.0,0.50683916]
[1757213756600,0.0011,110750.0,110740.0,1.32615916]
[1757213757292,0.0011,110750.0,110740.0,0.50683916]
[1757213757486,0.30740584,110750.0,110740.0,0.34496736]
[1757213757690,0.30740584,110750.0,110740.0,0.60690652]
[1757213757894,0.30740584,110750.0,110740.0,0.49356916]
[1757213758797,0.30740584,110750.0,110740.0,0.49156916]
[1757213759398,0.30740584,110750.0,110740.0,0.49056916]
[1757213759591,0.30740584,110750.0,110740.0,0.7519392]
[1757213759998,0.64740584,110750.0,110740.0,0.7519392]
[1757213760194,0.30740584,110750.0,110740.0,0.7519392]
[1757213760393,0.68740584,110750.0,110740.0,0.7519392]
[1757213761803,0.30740584,110750.0,110740.0,0.7519392]
[1757213763299,0.30740584,110750.0,110740.0,0.83286182]
[1757213763504,0.66740584,110750.0,110740.0,0.83286182]
[1757213764103,0.63740584,110750.0,110740.0,0.7519392]
[1757213765204,0.63740584,110750.0,110740.0,0.83286182]
[1757213765501,0.63740584,110750.0,110740.0,0.82986182]
[1757213765701,0.63740584,110750.0,110740.0,0.83086182]
[1757213766798,0.30740584,110750.0,110740.0,0.83086182]
[1757213767109,0.65740584,110750.0,110740.0,0.83086182]
[1757213768102,0.66740584,110750.0,110740.0,0.83086182]
[1757213768405,0.66740584,110750.0,110740.0,0.30755262]
[1757213768607,0.66740584,110750.0,110740.0,0.83086182]
[1757213768806,0.30740584,110750.0,110740.0,0.83086182]
[1757213769007,0.04360584,110750.0,110740.0,0.84413182]
[1757213769507,0.04360584,110750.0,110740.0,0.7632092]
[1757213770408,0.0227,110750.0,110740.0,0.78152629]
[1757213771506,0.0227,110750.0,110740.0,0.78252629]
[1757213772406,0.0227,110750.0,110740.0,0.78352629]
[1757213773708,0.0227,110750.0,110740.0,0.89686365]
[1757213775109,0.0365,110750.0,110740.0,0.89486365]
[1757213775607,0.0365,110750.0,110740.0,0.89586365]
[1757213776209,0.0365,110750.0,110740.0,0.89486365]
[1757213777001,0.3765,110750.0,110740.0,0.89486365]
[1757213777308,0.3865,110750.0,110740.0,0.89486365]
[1757213777809,0.0365,110750.0,110740.0,0.89486365]
[1757213779006,0.0227,110750.0,110740.0,0.89486365]
[1757213779802,0.0227,110750.0,110740.0,0.78152629]
[1757213780003,0.36537,110750.0,110740.0,0.76825629]
[1757213780210,0.03537,110750.0,110740.0,0.86315062]
[1757213780397,0.34513061,110750.0,110740.0,0.86315062]
[1757213780601,0.36691061,110750.0,110740.0,0.7627992]
[1757213780800,0.36691061,110750.0,110740.0,0.5627992]
[1757213781212,0.36282586,110750.0,110740.0,0.5627992]
[1757213781813,0.36282586,110750.0,110740.0,0.5637992]
[1757213782115,0.36282586,110750.0,110740.0,0.5647992]
[1757213782410,0.36282586,110750.0,110740.0,0.5637992]
[1757213783401,0.36282586,110750.0,110740.0,0.5627992]
[1757213787012,0.62448046,110750.0,110740.0,0.03949]
[1757213787310,1.70619046,110750.0,110740.0,0.11888467]
[1757213788605,1.70619046,110750.0,110740.0,0.00551]
[1757213789413,1.70619046,110750.0,110740.0,0.00451]
[1757213792417,1.96784506,110750.0,110740.0,0.00451]
[1757213793315,1.96784506,110750.0,110740.0,0.08542513]
[1757213795120,1.70691046,110750.0,110740.0,0.08542513]
[1757213795812,0.88715046,110750.0,110740.0,0.08542513]
[1757213796020,1.70691046,110750.0,110740.0,0.08542513]
[1757213797520,1.70679046,110750.0,110740.0,0.08542513]
[1757213798913,1.70675046,110750.0,110740.0,0.08542513]
[1757213799115,1.70671046,110750.0,110740.0,0.08542513]
[1757213799421,1.45681046,110750.0,110740.0,0.08542513]
[1757213800923,0.63725046,110750.0,110740.0,0.08542513]
[1757213801218,1.45705046,110750.0,110740.0,0.08542513]
[1757213801620,0.63725046,110750.0,110740.0,0.08542513]
[1757213801921,1.45705046,110750.0,110740.0,0.00451]
[1757213802619,0.63725046,110750.0,110740.0,0.00451]
[1757213802922,1.45697046,110750.0,110740.0,0.00451]
[1757213804023,0.37559586,110750.0,110740.0,0.00451]
[1757213804321,1.40565046,110750.0,110740.0,0.00451]
[1757213806324,0.63725046,110750.0,110740.0,0.00451]
[1757213806521,1.45681046,110750.0,110740.0,0.00451]
[1757213811421,1.45681046,110750.0,110740.0,0.08542513]
[1757213811623,1.45681046,110750.0,110740.0,0.00451]
[1757213813631,1.45681046,110750.0,110740.0,0.08542513]
[1757213817430,1.45681046,110750.0,110740.0,0.00451]
[1757213818629,1.45633046,110750.0,110740.0,0.00451]
[1757213821534,1.4564234,110750.0,110740.0,0.00451]
[1757213822534,1.4564234,110750.0,110740.0,0.11788467]
[1757213823240,0.6373434,110750.0,110740.0,0.11788467]
[1757213823442,1.4564634,110750.0,110740.0,0.11788467]
[1757213825634,0.6373434,110750.0,110740.0,0.13922467]
[1757213825840,1.4564634,110750.0,110740.0,0.10693048]
[1757213826145,1.19471586,110750.0,110740.0,0.10693328]
[1757213826343,1.19471586,110750.0,110740.0,0.02585]
[1757213826733,1.19471586,110750.0,110740.0,0.10693209]
[1757213827137,1.4564634,110750.0,110740.0,0.10693209]
[1757213833550,1.4564634,110750.0,110740.0,0.02585]
[1757213833848,1.4564634,110750.0,110740.0,0.00451]
[1757213834948,1.4564634,110750.0,110740.0,0.11788467]
[1757213836150,1.19471586,110750.0,110740.0,0.11788467]
[1757213836449,1.4564634,110750.0,110740.0,0.11788467]
[1757213838041,1.4564634,110750.0,110740.0,0.13922467]
[1757213838951,1.4564634,110750.0,110740.0,0.11788467]
[1757213847055,1.4564634,110750.0,110740.0,0.00451]
[1757213848650,1.4564634,110750.0,110740.0,0.11788467]
[1757213849155,1.19471586,110750.0,110740.0,0.11788467]
[1757213849355,1.4564634,110750.0,110740.0,0.11788467]
[1757213849558,1.4564634,110750.0,110740.0,0.00451]
[1757213856061,1.19471586,110750.0,110740.0,0.00451]
[1757213856262,1.4564634,110750.0,110740.0,0.08558044]
[1757213870276,1.4564634,110750.0,110740.0,0.00451]
[1757213872173,1.19471586,110750.0,110740.0,0.11788467]
[1757213872373,1.4564634,110750.0,110740.0,0.11788467]
[1757213874280,0.6373434,110750.0,110740.0,0.11788467]
[1757213874573,0.6373434,110750.0,110740.0,0.14098467]
[1757213874878,1.18324586,110750.0,110740.0,0.74691149]
[1757213875073,0.36292586,110750.0,110740.0,0.55243754]
[1757213875274,1.18340586,110750.0,110740.0,0.55243754]
[1757213875871,1.18340586,110750.0,110740.0,0.68710796]
[1757213876871,0.34188,110750.0,110740.0,0.68810796]
[1757213877074,1.16232,110750.0,110740.0,0.57473329]
[1757213877276,1.16232,110750.0,110740.0,0.73714497]
[1757213878081,1.16232,110750.0,110740.0,0.57573329]
[1757213879071,0.84232,110750.0,110740.0,0.57473329]
[1757213879277,0.97232,110750.0,110740.0,0.57673329]
[1757213880782,0.96232,110750.0,110740.0,0.57673329]
[1757213881475,0.84232,110750.0,110740.0,0.83822239]
[1757213881675,0.97232,110750.0,110740.0,0.83822239]
[1757213882981,1.15232,110750.0,110740.0,0.83822239]
[1757213883169,0.95232,110750.0,110740.0,0.83822239]
[1757213884881,0.95232,110750.0,110740.0,0.95142782]
[1757213885687,0.95232,110750.0,110740.0,0.83822239]
[1757213886181,0.1101,110750.0,110740.0,1.31141515]
[1757213886381,0.93142,110750.0,110740.0,0.95141515]
[1757213886580,0.93142,110750.0,110740.0,1.26141515]
[1757213886884,0.93142,110750.0,110740.0,0.95141515]
[1757213887182,0.82142,110750.0,110740.0,1.32141515]
[1757213888183,0.82142,110750.0,110740.0,0.95141515]
[1757213888982,0.82142,110750.0,110740.0,1.27141515]
[1757213889684,0.82142,110750.0,110740.0,0.95141515]
[1757213889885,0.82142,110750.0,110740.0,1.28141515]
[1757213890084,0.82142,110750.0,110740.0,0.95141515]
[1757213890675,0.82142,110750.0,110740.0,1.30141515]
[1757213891488,0.82142,110750.0,110740.0,0.95141515]
[1757213891687,0.82142,110750.0,110740.0,1.30141515]
[1757213891986,0.82142,110750.0,110740.0,0.95141515]
[1757213892585,0.82142,110750.0,110740.0,0.83822239]
[1757213892788,0.82142,110750.0,110740.0,1.14822239]
[1757213893588,0.82142,110750.0,110740.0,0.83822239]
[1757213897490,0.0001,110750.0,110740.0,1.16822239]
[1757213897692,0.0001,110750.0,110740.0,0.83822239]
[1757213898593,0.0001,110750.0,110740.0,1.17822239]
[1757213898993,0.0001,110750.0,110740.0,0.60822239]
[1757213899394,0.0001,110750.0,110740.0,0.89822239]
[1757213901091,0.0001,110750.0,110740.0,1.15984071]
[1757213902392,0.0001,110750.0,110740.0,1.40984071]
[1757213902591,1.227e-05,110750.0,110740.0,1.40984071]
[1757213902791,1.227e-05,110750.0,110740.0,2.32052801]
[1757213902992,1.227e-05,110750.0,110740.0,2.48293969]
[1757213903694,1.227e-05,110750.0,110740.0,2.50592501]
[1757213903896,1.227e-05,110750.0,110740.0,2.34351333]
[1757213904597,1.227e-05,110750.0,110740.0,2.34251333]
[1757213904889,1.227e-05,110750.0,110740.0,2.34651333]
[1757213905089,1.227e-05,110750.0,110740.0,1.52611333]
[1757213905295,1.227e-05,110750.0,110740.0,2.34635333]
[1757213908193,1.227e-05,110750.0,110740.0,2.34619333]
[1757213908889,1.227e-05,110750.0,110740.0,0.43125837]
[1757213909094,1.227e-05,110750.0,110740.0,1.77457501]
[1757213909596,1.227e-05,110750.0,110740.0,1.77609501]
[1757213911195,1.227e-05,110750.0,110740.0,2.03771333]
[1757213912697,1.227e-05,110750.0,110740.0,1.92444071]
[1757213912997,1.227e-05,110750.0,110740.0,1.97444071]
[1757213914499,1.227e-05,110750.0,110740.0,1.15284071]
[1757213914697,1.227e-05,110750.0,110740.0,1.97444071]
[1757213917309,1.227e-05,110750.0,110740.0,1.15284071]
[1757213917510,1.227e-05,110750.0,110740.0,1.97428071]
[1757213919410,1.227e-05,110750.0,110740.0,0.90284071]
[1757213919612,1.227e-05,110750.0,110740.0,1.72428071]
[1757213922612,0.04061343,110760.0,110750.0,0.01387]
[1757213922913,0.36051343,110760.0,110750.0,0.55869664]
[1757213923718,0.36051343,110760.0,110750.0,0.56169664]
[1757213924011,0.36061343,110760.0,110750.0,0.56620664]
[1757213924511,0.36061343,110760.0,110750.0,0.04297]
[1757213924717,0.61061343,110760.0,110750.0,0.04297]
[1757213924909,0.61061343,110760.0,110750.0,0.41794633]
[1757213924910,0.62350343,110760.0,110750.0,0.41794633]
[1757213925111,0.61061343,110760.0,110750.0,0.41794633]
[1757213925417,0.61061343,110760.0,110750.0,0.41694633]
[1757213925717,0.61061343,110760.0,110750.0,0.41594633]
[1757213926312,0.29061343,110760.0,110750.0,0.46594633]
[1757213926506,0.56518175,110760.0,110750.0,0.14045801]
[1757213926707,1.19680007,110760.0,110750.0,0.19987201]
[1757213927017,0.93518175,110760.0,110750.0,0.34813232]
[1757213927317,1.75710175,110760.0,110750.0,0.26712832]
[1757213931424,1.75710175,110760.0,110750.0,0.26612832]
[1757213933020,2.01872007,110760.0,110750.0,0.00451]
[1757213933322,2.01872007,110760.0,110750.0,0.08546592]
[1757213933723,1.19680007,110760.0,110750.0,0.08546592]
[1757213933927,2.01836007,110760.0,110750.0,0.08546592]
[1757213935124,1.49512343,110760.0,110750.0,0.08546592]
[1757213935325,2.01836007,110760.0,110750.0,0.08546592]
[1757213937123,2.01836007,110760.0,110750.0,0.00451]
[1757213938126,1.19680007,110760.0,110750.0,0.00451]
[1757213938328,2.01824007,110760.0,110750.0,0.00451]
[1757213940128,1.19680007,110760.0,110750.0,0.00451]
[1757213940432,2.01808007,110760.0,110750.0,0.00451]
[1757213943025,1.19680007,110760.0,110750.0,0.00451]
[1757213943227,2.01808007,110760.0,110750.0,0.06919108]
[1757213943429,1.75656322,110760.0,110750.0,0.06919108]
[1757213945034,1.75636322,110760.0,110750.0,0.06919108]
[1757213948539,1.75636322,110760.0,110750.0,0.00451]
[1757213948835,2.01808301,110760.0,110750.0,0.00451]
[1757213951337,2.01808301,110760.0,110750.0,0.08546592]
[1757213961443,2.01808301,110760.0,110750.0,0.00451]
[1757213963643,2.01808301,110760.0,110750.0,0.11786801]
[1757213971451,1.76808301,110760.0,110750.0,0.10942656]
[1757213971747,1.76808301,110760.0,110750.0,0.09592656]
[1757213972549,0.03683,110750.0,110740.0,0.00023586]
[1757213972748,0.66864979,110750.0,110740.0,0.00013586]
[1757213973149,0.66864979,110750.0,110740.0,0.08124742]
[1757213973746,0.66864979,110750.0,110740.0,0.08224742]
[1757213974349,1.48940979,110750.0,110740.0,0.00213586]
[1757213975350,1.48940979,110750.0,110740.0,0.00113586]
[1757213975555,1.48940979,110750.0,110740.0,0.00013586]
[1757213977558,0.66864979,110750.0,110740.0,0.00013586]
[1757213977759,1.48928979,110750.0,110740.0,0.00013586]
[1757213979561,1.48920979,110750.0,110740.0,0.00013586]
[1757213979862,1.48920979,110750.0,110740.0,0.08124742]
[1757213980359,1.48920979,110750.0,110740.0,0.00013586]
[1757213983263,1.48920979,110750.0,110740.0,0.11366419]
[1757213984962,0.66864979,110750.0,110740.0,0.11366419]
[1757213985164,1.48880979,110750.0,110740.0,0.11366419]
[1757213987166,1.48880979,110750.0,110740.0,0.00013586]
[1757213989568,1.48880979,110750.0,110740.0,0.11366419]
[1757213989869,0.66864979,110750.0,110740.0,0.11366419]
[1757213990366,1.48872979,110750.0,110740.0,0.11366419]
[1757213991266,0.66864979,110750.0,110740.0,0.11366419]
[1757213991462,1.48872979,110750.0,110740.0,0.11366419]
[1757213991663,1.48868979,110750.0,110740.0,0.11366419]
[1757213999272,1.48840979,110750.0,110740.0,0.13532419]
[1757214000567,0.29864979,110750.0,110740.0,0.13532419]
[1757214000866,1.46832979,110750.0,110740.0,0.13532419]
[1757214001472,0.03693,110750.0,110740.0,0.13532419]
[1757214001674,1.17306,110750.0,110740.0,0.29741565]
[1757214002377,1.17302,110750.0,110740.0,0.29741565]
[1757214002582,1.17302,110750.0,110740.0,0.41092858]
[1757214003470,1.43468584,110750.0,110740.0,0.41087463]
[1757214003873,0.02342,110750.0,110740.0,0.92254047]
[1757214004083,0.84294,110750.0,110740.0,1.00360897]
[1757214004378,0.81962,110750.0,110740.0,0.80902754]
[1757214004677,0.84265,110750.0,110740.0,0.80902754]
[1757214005777,0.84265,110750.0,110740.0,0.92254047]
[1757214005973,0.02313,110750.0,110740.0,0.92254047]
[1757214006172,0.81962,110750.0,110740.0,0.80902754]
[1757214006578,0.84265,110750.0,110740.0,0.80902754]
[1757214006775,0.84265,110750.0,110740.0,0.92243778]
[1757214009484,0.0001,110750.0,110740.0,0.92243778]
[1757214009684,0.0001,110750.0,110740.0,1.17902754]
[1757214009885,0.0001,110750.0,110740.0,1.14902754]
[1757214012281,0.0001,110750.0,110740.0,1.26232211]
[1757214012687,0.0001,110750.0,110740.0,1.14902754]
[1757214018290,0.0001,110750.0,110740.0,1.26219662]
[1757214018788,0.0001,110750.0,110740.0,1.30219662]
[1757214019489,0.0001,110750.0,110740.0,1.30670662]
[1757214020186,0.0001,110750.0,110740.0,0.81353754]
[1757214020591,0.0001,110750.0,110740.0,1.17353754]
[1757214020895,0.0001,110750.0,110740.0,1.25434977]
[1757214021091,0.0001,110750.0,110740.0,1.22434977]
[1757214021390,0.0001,110750.0,110740.0,2.04366977]
[1757214021595,0.0001,110750.0,110740.0,1.14353754]
[1757214022396,0.0001,110750.0,110740.0,1.18353754]
[1757214022595,0.0001,110750.0,110740.0,1.18553754]
[1757214022784,0.0001,110750.0,110740.0,1.48144586]
[1757214022987,0.0001,110750.0,110740.0,0.81753754]
[1757214023189,0.0001,110750.0,110740.0,1.18753754]
[1757214023394,0.0001,110750.0,110740.0,0.81753754]
[1757214024394,0.0001,110750.0,110740.0,1.14753754]
[1757214024595,0.0001,110750.0,110740.0,1.26070662]
[1757214024995,0.0001,110750.0,110740.0,1.16825798]
[1757214025195,0.0001,110750.0,110740.0,1.16625798]
[1757214025496,0.0001,110750.0,110740.0,1.16825798]
[1757214025697,0.0001,110750.0,110740.0,1.21925798]
[1757214025990,0.0001,110750.0,110740.0,0.84025798]
[1757214026197,0.0227,110750.0,110740.0,1.17025798]
[1757214026397,0.0001,110750.0,110740.0,0.84025798]
[1757214026694,0.0227,110750.0,110740.0,0.84025798]
[1757214026896,0.0227,110750.0,110740.0,0.3169263]
[1757214027097,0.0227,110750.0,110740.0,0.84025798]
[1757214027596,0.0227,110750.0,110740.0,0.83925798]
[1757214028499,0.28436584,110750.0,110740.0,0.17911463]
[1757214028703,0.91436584,110750.0,110740.0,0.15839419]
[1757214028903,0.92710584,110750.0,110740.0,0.42006003]
[1757214029097,0.92710584,110750.0,110740.0,0.41706003]
[1757214029298,0.92710584,110750.0,110740.0,0.41906003]
[1757214029698,0.92710584,110750.0,110740.0,0.41706003]
[1757214029899,0.92710584,110750.0,110740.0,0.15639419]
[1757214030104,0.92710584,110750.0,110740.0,0.41806003]
[1757214030596,0.92710584,110750.0,110740.0,0.41606003]
[1757214030904,0.92710584,110750.0,110740.0,0.41706003]
[1757214033000,0.92710584,110750.0,110740.0,0.40316003]
[1757214033402,0.92710584,110750.0,110740.0,0.14149419]
[1757214033700,0.92710584,110750.0,110740.0,0.40316003]
[1757214033905,0.50544,110750.0,110740.0,0.40316003]
[1757214034099,1.73702584,110750.0,110740.0,0.40316003]
[1757214038899,1.73702584,110750.0,110740.0,0.14149419]
[1757214039103,1.73702584,110750.0,110740.0,0.40316003]
[1757214039308,1.48702584,110750.0,110740.0,0.40316003]
[1757214040108,1.48702584,110750.0,110740.0,0.40216003]
[1757214040606,1.48702584,110750.0,110740.0,0.40116003]
[1757214044705,1.48702584,110750.0,110740.0,0.13949419]
[1757214045011,1.48702584,110750.0,110740.0,0.40116003]
[1757214045414,1.48702584,110750.0,110740.0,0.37950003]
[1757214045808,1.48702584,110750.0,110740.0,0.40101003]
[1757214046312,1.48702584,110750.0,110740.0,0.37950003]
[1757214046313,1.22536,110750.0,110740.0,0.37950003]
[1757214046508,1.48702584,110750.0,110740.0,0.37950003]
[1757214047015,1.22536,110750.0,110740.0,0.14114419]
[1757214047215,1.48702584,110750.0,110740.0,0.14114419]
[1757214049708,1.48702584,110750.0,110740.0,0.40281003]
[1757214050014,1.48702584,110750.0,110740.0,0.22203468]
[1757214050216,1.48702584,110750.0,110740.0,0.14114419]
[1757214050415,1.48702584,110750.0,110740.0,0.02795586]
[1757214050614,1.48702584,110750.0,110740.0,0.00464586]